[Event "Titled Tuesday Blitz May 16 Late 2023"]
[White "Djordjevic, Dejan N"]
[Black "benny_aizenberg"]
[WhiteFideId "913316"]
[WhiteElo "2261"]
[BlackElo "2678"]
[Result "0-1"]
[Round "07"]
[TimeControl "180+2"]
[Date "2023.05.16"]
[WhiteClock "0:00:00"]
[BlackClock "0:00:33"]

1. e4 {[%clk 0:02:55]}  c5 {[%clk 0:03:00]} 2. Nc3 {[%clk 0:02:54]}  Nc6 {[%clk 0:02:56]} 3. g3 {[%clk 0:02:54]}  g6 {[%clk 0:02:56]} 4. Bg2 {[%clk 0:02:55]}  Bg7 {[%clk 0:02:57]} 5. Nge2 {[%clk 0:02:56]}  e6 {[%clk 0:02:56]} 6. O-O {[%clk 0:02:56]}  Nge7 {[%clk 0:02:57]} 7. d3 {[%clk 0:02:56]}  O-O {[%clk 0:02:56]} 8. Be3 {[%clk 0:02:55]}  d6 {[%clk 0:02:57]} 9. Qd2 {[%clk 0:02:54]}  Rb8 {[%clk 0:02:56]} 10. d4 {[%clk 0:02:51]}  b6 {[%clk 0:02:44]} 11. Rad1 {[%clk 0:02:40]}  Ba6 {[%clk 0:02:40]} 12. Rfe1 {[%clk 0:02:35]}  cxd4 {[%clk 0:02:39]} 13. Nxd4 {[%clk 0:02:34]}  Ne5 {[%clk 0:02:39]} 14. b3 {[%clk 0:02:33]}  Rc8 {[%clk 0:02:23]} 15. h3 {[%clk 0:02:30]}  N5c6 {[%clk 0:02:05]} 16. Ndb5 {[%clk 0:02:28]}  Nb4 {[%clk 0:02:01]} 17. Rc1 {[%clk 0:01:54]}  Nxa2 {[%clk 0:01:57]} 18. Nxa2 {[%clk 0:01:41]}  Bxb5 {[%clk 0:01:57]} 19. c4 {[%clk 0:01:41]}  Bc6 {[%clk 0:01:52]} 20. Nb4 {[%clk 0:01:35]}  Qc7 {[%clk 0:01:39]} 21. Red1 {[%clk 0:01:29]}  Rfd8 {[%clk 0:01:36]} 22. Bf4 {[%clk 0:01:20]}  a5 {[%clk 0:01:29]} 23. Nxc6 {[%clk 0:01:17]}  Nxc6 {[%clk 0:01:29]} 24. Bxd6 {[%clk 0:01:15]}  Qd7 {[%clk 0:01:23]} 25. Bf4 {[%clk 0:01:11]}  Qxd2 {[%clk 0:01:21]} 26. Rxd2 {[%clk 0:01:09]}  Rxd2 {[%clk 0:01:20]} 27. Bxd2 {[%clk 0:01:09]}  Nd4 {[%clk 0:01:20]} 28. Rb1 {[%clk 0:01:07]}  Rd8 {[%clk 0:01:20]} 29. Be3 {[%clk 0:01:05]}  Bf8 {[%clk 0:01:17]} 30. Kf1 {[%clk 0:00:59]}  Bc5 {[%clk 0:01:16]} 31. e5 {[%clk 0:00:58]}  Nc2 {[%clk 0:00:56]} 32. Bxc5 {[%clk 0:00:48]}  bxc5 {[%clk 0:00:56]} 33. Ke2 {[%clk 0:00:24]}  Rb8 {[%clk 0:00:55]} 34. Kd2 {[%clk 0:00:20]}  Nd4 {[%clk 0:00:55]} 35. Kc3 {[%clk 0:00:21]}  a4 {[%clk 0:00:45]} 36. b4 {[%clk 0:00:19]}  Ne2+ {[%clk 0:00:44]} 37. Kd2 {[%clk 0:00:17]}  Rxb4 {[%clk 0:00:35]} 38. Rxb4 {[%clk 0:00:14]}  cxb4 {[%clk 0:00:36]} 39. Kxe2 {[%clk 0:00:00]}  a3 {[%clk 0:00:33]} 0-1


[Site "https://www.chess.com"]

[Event "Titled Tuesday Blitz May 16 Late 2023"]
[White "Papasimakopoulos, Alexandros"]
[Black "Adla, Diego"]
[WhiteFideId "4244125"]
[BlackFideId "100072"]
[WhiteElo "2359"]
[BlackElo "2377"]
[Result "0-1"]
[Round "07"]
[TimeControl "180+2"]
[Date "2023.05.16"]
[WhiteClock "0:00:03"]
[BlackClock "0:00:07"]

1. d4 {[%clk 0:03:00]}  Nf6 {[%clk 0:02:59]} 2. c4 {[%clk 0:03:00]}  e6 {[%clk 0:02:59]} 3. Nc3 {[%clk 0:02:57]}  Bb4 {[%clk 0:02:59]} 4. Qc2 {[%clk 0:02:57]}  O-O {[%clk 0:02:56]} 5. a3 {[%clk 0:02:56]}  Bxc3+ {[%clk 0:02:55]} 6. Qxc3 {[%clk 0:02:57]}  d6 {[%clk 0:02:55]} 7. f3 {[%clk 0:02:57]}  d5 {[%clk 0:02:52]} 8. Bf4 {[%clk 0:02:52]}  c5 {[%clk 0:02:47]} 9. Bxb8 {[%clk 0:02:40]}  Rxb8 {[%clk 0:02:39]} 10. cxd5 {[%clk 0:02:35]}  Nxd5 {[%clk 0:02:37]} 11. Qxc5 {[%clk 0:02:32]}  Bd7 {[%clk 0:02:37]} 12. e4 {[%clk 0:02:16]}  Rc8 {[%clk 0:02:36]} 13. Qd6 {[%clk 0:02:16]}  Ne3 {[%clk 0:02:21]} 14. Kf2 {[%clk 0:02:05]}  Qg5 {[%clk 0:01:51]} 15. h4 {[%clk 0:01:36]}  Qh6 {[%clk 0:01:30]} 16. Qxd7 {[%clk 0:01:29]}  Rfd8 {[%clk 0:01:26]} 17. Qe7 {[%clk 0:01:19]}  Rxd4 {[%clk 0:01:16]} 18. Qg5 {[%clk 0:01:14]}  Qxg5 {[%clk 0:01:10]} 19. hxg5 {[%clk 0:01:14]}  Nd1+ {[%clk 0:01:11]} 20. Kg3 {[%clk 0:01:13]}  Nxb2 {[%clk 0:01:11]} 21. Ne2 {[%clk 0:01:10]}  Rd2 {[%clk 0:01:11]} 22. Nf4 {[%clk 0:01:08]}  Rc5 {[%clk 0:01:02]} 23. Kg4 {[%clk 0:01:03]}  Na4 {[%clk 0:00:53]} 24. Rb1 {[%clk 0:01:00]}  b6 {[%clk 0:00:52]} 25. Rb5 {[%clk 0:01:00]}  Rc3 {[%clk 0:00:48]} 26. Rb1 {[%clk 0:00:54]}  Rc5 {[%clk 0:00:48]} 27. Nd3 {[%clk 0:00:49]}  Ra5 {[%clk 0:00:46]} 28. Rc1 {[%clk 0:00:44]}  g6 {[%clk 0:00:45]} 29. Rc7 {[%clk 0:00:39]}  Rd1 {[%clk 0:00:41]} 30. Nf2 {[%clk 0:00:36]}  Rd8 {[%clk 0:00:27]} 31. Kf4 {[%clk 0:00:30]}  Nc5 {[%clk 0:00:27]} 32. Ng4 {[%clk 0:00:29]}  h5 {[%clk 0:00:22]} 33. gxh6 {[%clk 0:00:23]}  e5+ {[%clk 0:00:20]} 34. Kg3 {[%clk 0:00:22]}  Ne6 {[%clk 0:00:18]} 35. Nf6+ {[%clk 0:00:16]}  Kh8 {[%clk 0:00:18]} 36. Rxf7 {[%clk 0:00:16]}  Ng5 {[%clk 0:00:17]} 37. Kg4 {[%clk 0:00:15]}  Nxf7 {[%clk 0:00:17]} 38. Bc4 {[%clk 0:00:15]}  Nd6 {[%clk 0:00:15]} 39. Bd5 {[%clk 0:00:15]}  Rxa3 {[%clk 0:00:14]} 40. Rc1 {[%clk 0:00:15]}  Ne8 {[%clk 0:00:13]} 41. Ng8 {[%clk 0:00:07]}  Ra5 {[%clk 0:00:09]} 42. Ne7 {[%clk 0:00:06]}  Rc5 {[%clk 0:00:08]} 43. Ra1 {[%clk 0:00:04]}  Nf6+ {[%clk 0:00:08]} 44. Kg5 {[%clk 0:00:04]}  Nxd5 {[%clk 0:00:08]} 45. exd5 {[%clk 0:00:04]}  a5 {[%clk 0:00:05]} 46. Rb1 {[%clk 0:00:03]}  b5 {[%clk 0:00:05]} 47. Rd1 {[%clk 0:00:02]}  Rd6 {[%clk 0:00:04]} 48. Nxg6+ {[%clk 0:00:02]}  Kh7 {[%clk 0:00:03]} 49. Ne7 {[%clk 0:00:03]}  b4 {[%clk 0:00:03]} 50. Kf5 {[%clk 0:00:03]}  b3 {[%clk 0:00:03]} 51. Kxe5 {[%clk 0:00:04]}  Rxh6 {[%clk 0:00:03]} 52. Nf5 {[%clk 0:00:03]}  b2 {[%clk 0:00:02]} 53. Rb1 {[%clk 0:00:01]}  Rb6 {[%clk 0:00:02]} 54. Ne3 {[%clk 0:00:01]}  Rc1 {[%clk 0:00:02]} 55. Rxb2 {[%clk 0:00:01]}  Rxb2 {[%clk 0:00:01]} 56. d6 {[%clk 0:00:02]}  Re2 {[%clk 0:00:01]} 57. Kf4 {[%clk 0:00:02]}  Rce1 {[%clk 0:00:02]} 58. Nf5 {[%clk 0:00:02]}  Re8 {[%clk 0:00:02]} 59. Nd4 {[%clk 0:00:01]}  Rd8 {[%clk 0:00:03]} 60. d7 {[%clk 0:00:01]}  Rxd7 {[%clk 0:00:03]} 61. Nc6 {[%clk 0:00:02]}  Rc1 {[%clk 0:00:02]} 62. Ne5 {[%clk 0:00:02]}  Ra7 {[%clk 0:00:02]} 63. Nd3 {[%clk 0:00:02]}  a4 {[%clk 0:00:03]} 64. Nxc1 {[%clk 0:00:02]}  a3 {[%clk 0:00:03]} 65. Na2 {[%clk 0:00:02]}  Rb7 {[%clk 0:00:04]} 66. Ke3 {[%clk 0:00:03]}  Rb2 {[%clk 0:00:05]} 67. Nc1 {[%clk 0:00:03]}  Rxg2 {[%clk 0:00:04]} 68. Kd3 {[%clk 0:00:03]}  a2 {[%clk 0:00:04]} 69. Nb3 {[%clk 0:00:03]}  Rg1 {[%clk 0:00:04]} 70. Ke4 {[%clk 0:00:02]}  a1=Q {[%clk 0:00:05]} 71. Nxa1 {[%clk 0:00:02]}  Rxa1 {[%clk 0:00:05]} 72. Kf5 {[%clk 0:00:03]}  Rf1 {[%clk 0:00:05]} 73. f4 {[%clk 0:00:04]}  Kg7 {[%clk 0:00:06]} 74. Kg5 {[%clk 0:00:04]}  Kf7 {[%clk 0:00:06]} 75. Kf5 {[%clk 0:00:05]}  Rf2 {[%clk 0:00:06]} 76. Ke5 {[%clk 0:00:06]}  Kg6 {[%clk 0:00:06]} 77. Ke4 {[%clk 0:00:06]}  Kf6 {[%clk 0:00:07]} 78. Ke3 {[%clk 0:00:07]}  Rf1 {[%clk 0:00:07]} 79. Ke4 {[%clk 0:00:03]}  Ke6 {[%clk 0:00:07]} 0-1


[Site "https://www.chess.com"]

[Event "Titled Tuesday Blitz May 16 Late 2023"]
[White "Vakhlamov, Igor L."]
[Black "Erzhanov, Arman"]
[WhiteFideId "24126748"]
[BlackFideId "4138821"]
[WhiteElo "2407"]
[BlackElo "2138"]
[Result "1-0"]
[Round "07"]
[TimeControl "180+2"]
[Date "2023.05.16"]
[WhiteClock "0:00:33"]
[BlackClock "0:00:50"]

1. e4 {[%clk 0:02:59]}  d6 {[%clk 0:03:00]} 2. d4 {[%clk 0:02:59]}  Nf6 {[%clk 0:03:01]} 3. Nc3 {[%clk 0:03:00]}  c6 {[%clk 0:03:01]} 4. Nf3 {[%clk 0:02:52]}  Bg4 {[%clk 0:03:01]} 5. h3 {[%clk 0:02:52]}  Bxf3 {[%clk 0:03:00]} 6. Qxf3 {[%clk 0:02:53]}  e6 {[%clk 0:03:01]} 7. Bd3 {[%clk 0:02:47]}  d5 {[%clk 0:03:01]} 8. O-O {[%clk 0:02:45]}  dxe4 {[%clk 0:03:00]} 9. Nxe4 {[%clk 0:02:46]}  Nxe4 {[%clk 0:03:01]} 10. Qxe4 {[%clk 0:02:46]}  Nd7 {[%clk 0:03:01]} 11. c3 {[%clk 0:02:45]}  Nf6 {[%clk 0:03:01]} 12. Qh4 {[%clk 0:02:46]}  Be7 {[%clk 0:03:01]} 13. Re1 {[%clk 0:02:46]}  Qd5 {[%clk 0:02:58]} 14. Re5 {[%clk 0:02:45]}  Qd8 {[%clk 0:02:52]} 15. Re2 {[%clk 0:02:43]}  Nd5 {[%clk 0:02:48]} 16. Qg3 {[%clk 0:02:43]}  Bf6 {[%clk 0:02:47]} 17. Bd2 {[%clk 0:02:39]}  a5 {[%clk 0:02:46]} 18. a4 {[%clk 0:02:38]}  O-O {[%clk 0:02:44]} 19. Rae1 {[%clk 0:02:37]}  g6 {[%clk 0:02:40]} 20. Qf3 {[%clk 0:02:35]}  Bg7 {[%clk 0:02:40]} 21. g3 {[%clk 0:02:35]}  Qf6 {[%clk 0:02:35]} 22. Qe4 {[%clk 0:02:34]}  Rfd8 {[%clk 0:02:32]} 23. Bb1 {[%clk 0:02:21]}  Rd7 {[%clk 0:02:31]} 24. h4 {[%clk 0:02:21]}  h5 {[%clk 0:02:30]} 25. Bg5 {[%clk 0:02:17]}  Qf5 {[%clk 0:02:27]} 26. Qg2 {[%clk 0:02:18]}  Qg4 {[%clk 0:02:20]} 27. f3 {[%clk 0:02:18]}  Bxd4+ {[%clk 0:02:21]} 28. cxd4 {[%clk 0:02:13]}  Qxd4+ {[%clk 0:02:20]} 29. Kh2 {[%clk 0:02:13]}  Qxa4 {[%clk 0:02:21]} 30. g4 {[%clk 0:02:08]}  Nf4 {[%clk 0:02:17]} 31. Bxf4 {[%clk 0:02:03]}  Qxf4+ {[%clk 0:02:18]} 32. Kh3 {[%clk 0:01:59]}  hxg4+ {[%clk 0:02:18]} 33. fxg4 {[%clk 0:01:59]}  Rad8 {[%clk 0:02:15]} 34. Qg3 {[%clk 0:01:34]}  Qxg3+ {[%clk 0:01:53]} 35. Kxg3 {[%clk 0:01:34]}  Rd4 {[%clk 0:01:53]} 36. h5 {[%clk 0:01:33]}  gxh5 {[%clk 0:01:52]} 37. gxh5 {[%clk 0:01:34]}  Kg7 {[%clk 0:01:52]} 38. Rf1 {[%clk 0:01:23]}  Rh8 {[%clk 0:01:47]} 39. Re5 {[%clk 0:01:18]}  Rd5 {[%clk 0:01:43]} 40. Rxd5 {[%clk 0:01:14]}  cxd5 {[%clk 0:01:43]} 41. Kg4 {[%clk 0:01:13]}  Rc8 {[%clk 0:01:25]} 42. Kg5 {[%clk 0:01:09]}  Rh8 {[%clk 0:01:16]} 43. Rc1 {[%clk 0:00:47]}  Rh6 {[%clk 0:01:15]} 44. Rc7 {[%clk 0:00:43]}  Rf6 {[%clk 0:01:16]} 45. Rxb7 {[%clk 0:00:41]}  Rf1 {[%clk 0:01:15]} 46. h6+ {[%clk 0:00:40]}  Kf8 {[%clk 0:01:06]} 47. Rb8+ {[%clk 0:00:40]}  Ke7 {[%clk 0:01:07]} 48. h7 {[%clk 0:00:40]}  f6+ {[%clk 0:01:00]} 49. Kg4 {[%clk 0:00:40]}  Rg1+ {[%clk 0:00:52]} 50. Kf3 {[%clk 0:00:40]}  Rxb1 {[%clk 0:00:48]} 51. h8=Q {[%clk 0:00:39]}  Kd6 {[%clk 0:00:47]} 52. Qd8+ {[%clk 0:00:34]}  Ke5 {[%clk 0:00:47]} 53. Qc7+ {[%clk 0:00:34]}  Kf5 {[%clk 0:00:47]} 54. Qf4+ {[%clk 0:00:34]}  Kg6 {[%clk 0:00:47]} 55. Qg4+ {[%clk 0:00:34]}  Kf7 {[%clk 0:00:48]} 56. Qg8+ {[%clk 0:00:33]}  Ke7 {[%clk 0:00:49]} 57. Qf8+ {[%clk 0:00:34]}  Kd7 {[%clk 0:00:49]} 58. Rd8+ {[%clk 0:00:34]}  Kc6 {[%clk 0:00:49]} 59. Qd6+ {[%clk 0:00:34]}  Kb5 {[%clk 0:00:49]} 60. Rb8+ {[%clk 0:00:35]}  Kc4 {[%clk 0:00:50]} 61. Qc6+ {[%clk 0:00:32]}  Kd3 {[%clk 0:00:50]} 62. Qc3# {[%clk 0:00:33]} 1-0


[Site "https://www.chess.com"]

[Event "Titled Tuesday Blitz May 16 Late 2023"]
[White "Pasti, Aron"]
[Black "Arabidze, Meri"]
[WhiteFideId "785857"]
[BlackFideId "13604040"]
[WhiteElo "2173"]
[BlackElo "2405"]
[Result "1-0"]
[Round "07"]
[TimeControl "180+2"]
[Date "2023.05.16"]
[WhiteClock "0:00:53"]
[BlackClock "0:00:01"]

1. e4 {[%clk 0:03:00]}  c5 {[%clk 0:03:00]} 2. Nf3 {[%clk 0:03:01]}  e6 {[%clk 0:03:00]} 3. d4 {[%clk 0:03:01]}  cxd4 {[%clk 0:03:01]} 4. Nxd4 {[%clk 0:03:02]}  Nc6 {[%clk 0:03:01]} 5. Nc3 {[%clk 0:03:02]}  a6 {[%clk 0:03:02]} 6. Be3 {[%clk 0:03:02]}  Nf6 {[%clk 0:03:00]} 7. g4 {[%clk 0:02:58]}  Bb4 {[%clk 0:02:58]} 8. Bg2 {[%clk 0:02:36]}  d5 {[%clk 0:02:58]} 9. Nxc6 {[%clk 0:02:25]}  bxc6 {[%clk 0:02:57]} 10. g5 {[%clk 0:02:25]}  Nd7 {[%clk 0:02:41]} 11. Qd4 {[%clk 0:02:16]}  Bf8 {[%clk 0:02:30]} 12. exd5 {[%clk 0:02:08]}  cxd5 {[%clk 0:02:27]} 13. O-O-O {[%clk 0:02:08]}  Bb7 {[%clk 0:02:16]} 14. Rhe1 {[%clk 0:02:07]}  Rc8 {[%clk 0:01:53]} 15. Nxd5 {[%clk 0:01:58]}  Nc5 {[%clk 0:00:47]} 16. Qc3 {[%clk 0:01:17]}  Ne4 {[%clk 0:00:28]} 17. Nf6+ {[%clk 0:01:09]}  Qxf6 {[%clk 0:00:15]} 18. Qxc8+ {[%clk 0:01:08]}  Bxc8 {[%clk 0:00:16]} 19. gxf6 {[%clk 0:01:09]}  Nxf6 {[%clk 0:00:16]} 20. Bc6+ {[%clk 0:01:08]}  Bd7 {[%clk 0:00:16]} 21. Rxd7 {[%clk 0:01:08]}  Nxd7 {[%clk 0:00:16]} 22. Rd1 {[%clk 0:01:09]}  Bb4 {[%clk 0:00:13]} 23. Rxd7 {[%clk 0:01:05]}  O-O {[%clk 0:00:13]} 24. c3 {[%clk 0:01:05]}  Ba5 {[%clk 0:00:11]} 25. Bc5 {[%clk 0:01:03]}  Rc8 {[%clk 0:00:11]} 26. b4 {[%clk 0:00:55]}  Rxc6 {[%clk 0:00:08]} 27. bxa5 {[%clk 0:00:55]}  h5 {[%clk 0:00:08]} 28. Bb4 {[%clk 0:00:53]}  g5 {[%clk 0:00:08]} 29. Rd6 {[%clk 0:00:54]}  Rc4 {[%clk 0:00:07]} 30. Rxa6 {[%clk 0:00:54]}  Rh4 {[%clk 0:00:07]} 31. Ra8+ {[%clk 0:00:53]}  Kg7 {[%clk 0:00:07]} 32. a6 {[%clk 0:00:53]}  Rxh2 {[%clk 0:00:07]} 33. a7 {[%clk 0:00:54]}  Rxf2 {[%clk 0:00:06]} 34. Rd8 {[%clk 0:00:52]}  h4 {[%clk 0:00:05]} 35. a8=Q {[%clk 0:00:51]}  h3 {[%clk 0:00:05]} 36. Rg8+ {[%clk 0:00:52]}  Kf6 {[%clk 0:00:04]} 37. Qd8+ {[%clk 0:00:52]}  Kf5 {[%clk 0:00:05]} 38. Qxg5+ {[%clk 0:00:53]}  Ke4 {[%clk 0:00:01]} 39. Qh4+ {[%clk 0:00:53]} 1-0


[Site "https://www.chess.com"]

[Event "Titled Tuesday Blitz May 16 Late 2023"]
[White "Papayan, Oleg"]
[Black "Camilla_Lee"]
[WhiteFideId "4193911"]
[WhiteElo "2171"]
[BlackElo "2624"]
[Result "0-1"]
[Round "07"]
[TimeControl "180+2"]
[Date "2023.05.16"]
[WhiteClock "0:00:01"]
[BlackClock "0:00:18"]

1. e4 {[%clk 0:03:00]}  e5 {[%clk 0:03:00]} 2. Nf3 {[%clk 0:03:01]}  Nc6 {[%clk 0:03:00]} 3. Bb5 {[%clk 0:03:00]}  f5 {[%clk 0:03:00]} 4. d3 {[%clk 0:02:59]}  fxe4 {[%clk 0:03:01]} 5. dxe4 {[%clk 0:02:59]}  Nf6 {[%clk 0:03:01]} 6. O-O {[%clk 0:02:59]}  Bc5 {[%clk 0:03:01]} 7. Qe2 {[%clk 0:02:50]}  Nd4 {[%clk 0:02:59]} 8. Nxd4 {[%clk 0:02:47]}  Bxd4 {[%clk 0:03:00]} 9. Bc4 {[%clk 0:02:39]}  Qe7 {[%clk 0:02:56]} 10. c3 {[%clk 0:02:31]}  Bb6 {[%clk 0:02:56]} 11. Bg5 {[%clk 0:02:23]}  d6 {[%clk 0:02:52]} 12. a4 {[%clk 0:02:16]}  a6 {[%clk 0:02:52]} 13. a5 {[%clk 0:02:14]}  Ba7 {[%clk 0:02:52]} 14. Nd2 {[%clk 0:02:10]}  Be6 {[%clk 0:02:36]} 15. Kh1 {[%clk 0:02:08]}  O-O {[%clk 0:02:29]} 16. f3 {[%clk 0:02:00]}  h6 {[%clk 0:02:26]} 17. Bxf6 {[%clk 0:01:56]}  Rxf6 {[%clk 0:02:26]} 18. Bxe6+ {[%clk 0:01:56]}  Qxe6 {[%clk 0:02:25]} 19. Qc4 {[%clk 0:01:55]}  Qxc4 {[%clk 0:02:18]} 20. Nxc4 {[%clk 0:01:56]}  Kf7 {[%clk 0:02:16]} 21. Ra3 {[%clk 0:01:43]}  Ke6 {[%clk 0:02:15]} 22. Rb3 {[%clk 0:01:40]}  Rb8 {[%clk 0:02:12]} 23. Rd1 {[%clk 0:01:38]}  Rf7 {[%clk 0:02:07]} 24. Rd3 {[%clk 0:01:32]}  Rd7 {[%clk 0:02:07]} 25. Nb6 {[%clk 0:01:15]}  Bxb6 {[%clk 0:02:02]} 26. axb6 {[%clk 0:01:16]}  c6 {[%clk 0:02:02]} 27. c4 {[%clk 0:01:09]}  d5 {[%clk 0:02:00]} 28. cxd5+ {[%clk 0:00:53]}  cxd5 {[%clk 0:02:01]} 29. exd5+ {[%clk 0:00:47]}  Rxd5 {[%clk 0:02:02]} 30. Rxd5 {[%clk 0:00:45]}  Kxd5 {[%clk 0:02:03]} 31. Rc3 {[%clk 0:00:46]}  g5 {[%clk 0:01:33]} 32. Rc7 {[%clk 0:00:45]}  h5 {[%clk 0:01:33]} 33. Kg1 {[%clk 0:00:41]}  e4 {[%clk 0:01:30]} 34. fxe4+ {[%clk 0:00:29]}  Kxe4 {[%clk 0:01:30]} 35. Rg7 {[%clk 0:00:26]}  Kf4 {[%clk 0:01:28]} 36. Kf2 {[%clk 0:00:25]}  Rd8 {[%clk 0:01:20]} 37. Rf7+ {[%clk 0:00:20]}  Kg4 {[%clk 0:01:11]} 38. h3+ {[%clk 0:00:14]}  Kh4 {[%clk 0:01:11]} 39. Rxb7 {[%clk 0:00:12]}  Rd2+ {[%clk 0:01:09]} 40. Kf3 {[%clk 0:00:12]}  Rxb2 {[%clk 0:01:08]} 41. Rh7 {[%clk 0:00:10]}  Rb3+ {[%clk 0:01:04]} 42. Kf2 {[%clk 0:00:10]}  Rxb6 {[%clk 0:01:00]} 43. g4 {[%clk 0:00:04]}  Kxh3 {[%clk 0:00:54]} 44. gxh5 {[%clk 0:00:04]}  g4 {[%clk 0:00:51]} 45. Rg7 {[%clk 0:00:02]}  a5 {[%clk 0:00:43]} 46. Rg6 {[%clk 0:00:01]}  Rb2+ {[%clk 0:00:41]} 47. Kf1 {[%clk 0:00:02]}  Rb5 {[%clk 0:00:26]} 48. h6 {[%clk 0:00:03]}  Rh5 {[%clk 0:00:27]} 49. Ra6 {[%clk 0:00:01]}  a4 {[%clk 0:00:22]} 50. Rxa4 {[%clk 0:00:01]}  Rxh6 {[%clk 0:00:23]} 51. Kg1 {[%clk 0:00:02]}  Rc6 {[%clk 0:00:21]} 52. Ra8 {[%clk 0:00:01]}  Rc3 {[%clk 0:00:19]} 53. Ra7 {[%clk 0:00:01]}  Kg3 {[%clk 0:00:18]} 54. Ra6 {[%clk 0:00:01]}  Rc1# {[%clk 0:00:18]} 0-1


[Site "https://www.chess.com"]

[Event "Titled Tuesday Blitz May 16 Late 2023"]
[White "Karimov, Alisher"]
[Black "Mickiewicz, Piotr"]
[WhiteFideId "14700280"]
[BlackFideId "1114891"]
[WhiteElo "2186"]
[BlackElo "2246"]
[Result "1-0"]
[Round "07"]
[TimeControl "180+2"]
[Date "2023.05.16"]
[WhiteClock "0:00:34"]
[BlackClock "0:00:00"]

1. d4 {[%clk 0:03:00]}  Nf6 {[%clk 0:02:57]} 2. Nc3 {[%clk 0:02:58]}  d5 {[%clk 0:02:55]} 3. Bf4 {[%clk 0:02:57]}  a6 {[%clk 0:02:51]} 4. e3 {[%clk 0:02:50]}  c5 {[%clk 0:02:52]} 5. dxc5 {[%clk 0:02:41]}  Nc6 {[%clk 0:02:52]} 6. Nf3 {[%clk 0:02:41]}  Bg4 {[%clk 0:02:50]} 7. h3 {[%clk 0:02:37]}  Bxf3 {[%clk 0:02:46]} 8. Qxf3 {[%clk 0:02:38]}  e6 {[%clk 0:02:46]} 9. e4 {[%clk 0:02:22]}  Nd4 {[%clk 0:02:09]} 10. Qd3 {[%clk 0:02:03]}  dxe4 {[%clk 0:02:07]} 11. Nxe4 {[%clk 0:01:58]}  Nxe4 {[%clk 0:01:32]} 12. Qxe4 {[%clk 0:01:59]}  f5 {[%clk 0:01:10]} 13. Qd3 {[%clk 0:01:49]}  Bxc5 {[%clk 0:01:02]} 14. O-O-O {[%clk 0:01:47]}  O-O {[%clk 0:00:54]} 15. Be3 {[%clk 0:01:20]}  e5 {[%clk 0:00:04]} 16. Qc4+ {[%clk 0:01:18]}  Kh8 {[%clk 0:00:04]} 17. Qxc5 {[%clk 0:01:12]}  Rc8 {[%clk 0:00:05]} 18. Qxe5 {[%clk 0:00:51]}  Rxc2+ {[%clk 0:00:06]} 19. Kb1 {[%clk 0:00:51]}  Rxb2+ {[%clk 0:00:00]} 20. Ka1 {[%clk 0:00:34]} 1-0


[Site "https://www.chess.com"]

[Event "Titled Tuesday Blitz May 16 Late 2023"]
[White "Melikyan, Gnel"]
[Black "Prieto Aranguren, Alain"]
[WhiteFideId "54109990"]
[BlackFideId "2268906"]
[WhiteElo "2138"]
[BlackElo "2209"]
[Result "1/2-1/2"]
[Round "07"]
[TimeControl "180+2"]
[Date "2023.05.16"]
[WhiteClock "0:00:21"]
[BlackClock "0:00:09"]

1. Na3 {[%clk 0:02:56]}  d5 {[%clk 0:02:58]} 2. c4 {[%clk 0:02:55]}  d4 {[%clk 0:02:58]} 3. e3 {[%clk 0:02:54]}  e5 {[%clk 0:02:58]} 4. d3 {[%clk 0:02:54]}  Nf6 {[%clk 0:02:57]} 5. Nf3 {[%clk 0:02:54]}  Nc6 {[%clk 0:02:56]} 6. Nc2 {[%clk 0:02:52]}  Bc5 {[%clk 0:02:55]} 7. a3 {[%clk 0:02:47]}  a5 {[%clk 0:02:54]} 8. Be2 {[%clk 0:02:47]}  O-O {[%clk 0:02:53]} 9. O-O {[%clk 0:02:45]}  Re8 {[%clk 0:02:50]} 10. b3 {[%clk 0:02:40]}  Bg4 {[%clk 0:02:42]} 11. Nfxd4 {[%clk 0:02:30]}  exd4 {[%clk 0:02:37]} 12. Bxg4 {[%clk 0:02:28]}  Nxg4 {[%clk 0:02:36]} 13. Qxg4 {[%clk 0:02:28]}  dxe3 {[%clk 0:02:35]} 14. Bxe3 {[%clk 0:02:27]}  Bxe3 {[%clk 0:02:34]} 15. fxe3 {[%clk 0:02:03]}  Qxd3 {[%clk 0:02:28]} 16. Qf5 {[%clk 0:02:03]}  Qxf5 {[%clk 0:02:24]} 17. Rxf5 {[%clk 0:02:04]}  Rad8 {[%clk 0:02:21]} 18. Rd5 {[%clk 0:02:00]}  Rxd5 {[%clk 0:02:13]} 19. cxd5 {[%clk 0:02:01]}  Ne5 {[%clk 0:02:10]} 20. Nd4 {[%clk 0:01:58]}  Rd8 {[%clk 0:02:08]} 21. Rc1 {[%clk 0:01:57]}  Rd7 {[%clk 0:01:57]} 22. Rc5 {[%clk 0:01:45]}  b6 {[%clk 0:01:53]} 23. Rc3 {[%clk 0:01:45]}  g6 {[%clk 0:01:47]} 24. e4 {[%clk 0:01:28]}  f5 {[%clk 0:01:45]} 25. exf5 {[%clk 0:01:23]}  Rxd5 {[%clk 0:01:43]} 26. Ne6 {[%clk 0:01:22]}  c5 {[%clk 0:01:32]} 27. fxg6 {[%clk 0:01:10]}  hxg6 {[%clk 0:01:26]} 28. h3 {[%clk 0:01:07]}  Rd3 {[%clk 0:01:21]} 29. Rxd3 {[%clk 0:01:04]}  Nxd3 {[%clk 0:01:21]} 30. Nc7 {[%clk 0:01:00]}  Nc1 {[%clk 0:01:20]} 31. Nd5 {[%clk 0:00:55]}  b5 {[%clk 0:01:11]} 32. Nc7 {[%clk 0:00:43]}  b4 {[%clk 0:01:07]} 33. axb4 {[%clk 0:00:39]}  cxb4 {[%clk 0:01:04]} 34. Kf2 {[%clk 0:00:32]}  Nxb3 {[%clk 0:01:03]} 35. Nd5 {[%clk 0:00:30]}  Nc5 {[%clk 0:01:00]} 36. Ke3 {[%clk 0:00:29]}  b3 {[%clk 0:00:59]} 37. Kd4 {[%clk 0:00:29]}  b2 {[%clk 0:00:57]} 38. Nc3 {[%clk 0:00:29]}  Nb3+ {[%clk 0:00:52]} 39. Kd3 {[%clk 0:00:30]}  Na1 {[%clk 0:00:42]} 40. Nb1 {[%clk 0:00:26]}  Nb3 {[%clk 0:00:27]} 41. Kc3 {[%clk 0:00:25]}  Nc5 {[%clk 0:00:26]} 42. Kxb2 {[%clk 0:00:24]}  Kf7 {[%clk 0:00:26]} 43. Nd2 {[%clk 0:00:22]}  Kf6 {[%clk 0:00:25]} 44. g3 {[%clk 0:00:20]}  Ke5 {[%clk 0:00:24]} 45. Nf3+ {[%clk 0:00:20]}  Ke4 {[%clk 0:00:21]} 46. Nh4 {[%clk 0:00:20]}  g5 {[%clk 0:00:18]} 47. Ng6 {[%clk 0:00:21]}  Kf3 {[%clk 0:00:16]} 48. h4 {[%clk 0:00:21]}  Kg4 {[%clk 0:00:14]} 49. hxg5 {[%clk 0:00:21]}  Kxg5 {[%clk 0:00:14]} 50. Ne5 {[%clk 0:00:21]}  Ne4 {[%clk 0:00:12]} 51. Nc4 {[%clk 0:00:21]}  Nxg3 {[%clk 0:00:09]} 52. Nxa5 {[%clk 0:00:21]} 1/2-1/2


[Site "https://www.chess.com"]